bitfinex-derivatives/quotes_BTCF0:USTF0_20250503
["timestamp","ask_amount","ask_price","bid_price","bid_amount"]
[1746293654371,0.2727421,96065.0,96064.0,0.28081085]
[1746293658070,0.3907421,96065.0,96064.0,0.28081085]
[1746293663270,0.3907421,96065.0,96064.0,0.0316]
[1746293663973,0.1513,96065.0,96064.0,0.2397424]
[1746293664177,0.2414403,96065.0,96064.0,0.2397424]
[1746293669074,0.2081424,96064.0,96063.0,0.0305]
[1746293669382,0.2401424,96064.0,96063.0,0.0305]
[1746293669577,0.2705424,96064.0,96063.0,0.0305]
[1746293670075,0.3885424,96064.0,96063.0,0.0305]
[1746293671481,0.2081533,96059.0,96058.0,0.5689536]
[1746293672783,0.2404533,96059.0,96058.0,0.5689536]
[1746293675175,0.3584533,96059.0,96058.0,0.5689536]
[1746293681185,0.3584533,96059.0,96058.0,0.2081536]
[1746293692484,0.1503,96059.0,96058.0,0.2081536]
[1746293694090,0.1503,96059.0,96058.0,0.2390536]
[1746293695993,0.1503,96059.0,96058.0,0.50384481]
[1746293698893,0.1503,96059.0,96058.0,0.2390536]
[1746293701489,0.1834,96059.0,96058.0,0.2390536]
[1746293701683,0.1834,96059.0,96058.0,0.2081536]
[1746293702487,0.2081576,96057.0,96056.0,0.4187]
[1746293702896,0.2081598,96056.0,96055.0,0.5689619]
[1746293703090,0.3910598,96056.0,96055.0,0.5689619]
[1746293703790,0.3910598,96056.0,96055.0,0.3608]
[1746293704697,0.3910598,96056.0,96055.0,0.5689619]
[1746293712692,0.3910598,96056.0,96055.0,0.3608]
[1746293712896,0.2081728,96050.0,96049.0,0.01073933]
[1746293713092,0.2081749,96049.0,96048.0,0.26479121]
[1746293713293,0.2707749,96049.0,96048.0,0.21489121]
[1746293713493,0.62489091,96049.0,96048.0,0.08248721]
[1746293713799,0.2081988,96038.0,96037.0,0.18955953]
[1746293714101,0.3261988,96038.0,96037.0,0.18955953]
[1746293714300,0.3261988,96038.0,96028.0,0.00797599]
[1746293714301,0.2082031,96036.0,96028.0,0.00797599]
[1746293714497,0.2082248,96026.0,96025.0,0.37037335]
[1746293714697,0.5690248,96026.0,96025.0,0.37037335]
[1746293714900,0.92316481,96026.0,96025.0,0.37037335]
[1746293715105,0.6850248,96026.0,96025.0,0.37037335]
[1746293715401,0.6840248,96026.0,96025.0,0.37037335]
[1746293717304,0.7475248,96026.0,96025.0,0.37037335]
[1746293718707,0.2082378,96020.0,96019.0,0.2082397]
[1746293719104,0.3262378,96020.0,96019.0,0.2082397]
[1746293719502,0.3866378,96020.0,96019.0,0.2082397]
[1746293721013,0.2082487,96015.0,96014.0,0.2696488]
[1746293721205,0.2082487,96015.0,96014.0,0.2392488]
[1746293721503,0.2072487,96015.0,96014.0,0.2392488]
[1746293722109,0.3252487,96015.0,96014.0,0.2392488]
[1746293722313,0.3894487,96015.0,96014.0,0.2392488]
[1746293723402,0.3904487,96015.0,96014.0,0.031]
[1746293725105,0.2082638,96008.0,96005.0,0.00104161]
[1746293725311,0.5690638,96008.0,96005.0,0.00104161]
[1746293725513,0.6732238,96008.0,96007.0,0.01225884]
[1746293725913,0.7044238,96008.0,96007.0,0.01225884]
[1746293726111,0.7510638,96008.0,96007.0,0.01225884]
[1746293726503,0.7510638,96008.0,96007.0,0.01325884]
[1746293727614,0.7510638,96008.0,96007.0,0.01425884]
[1746293728204,0.7510638,96008.0,96007.0,0.01325884]
[1746293728414,0.7510638,96008.0,96007.0,0.01425884]
[1746293729809,0.6870638,96008.0,96007.0,0.01425884]
[1746293730016,0.3262638,96008.0,96007.0,0.25582484]
[1746293736223,0.3262638,96008.0,96007.0,0.28672484]
[1746293737418,0.118,96008.0,96007.0,0.28672484]
[1746293737616,0.3262638,96008.0,96007.0,0.28672484]
[1746293738116,0.2082638,96008.0,96007.0,0.28672484]
[1746293743222,0.3262638,96008.0,96007.0,0.28672484]
[1746293743418,0.3569638,96008.0,96007.0,0.28672484]
[1746293746726,0.7177638,96008.0,96007.0,0.01425884]
[1746293748427,0.7177638,96008.0,96007.0,0.01568442]
[1746293759837,0.7499638,96008.0,96007.0,0.01568442]
[1746293766937,0.7177638,96008.0,96007.0,0.01568442]
[1746293767137,0.7177638,96008.0,96007.0,0.04738442]
[1746293767530,0.7177638,96008.0,96007.0,0.01568442]
[1746293768635,0.7177638,96008.0,96007.0,0.04738442]
[1746293772743,0.7177638,96008.0,96007.0,0.07738442]
[1746293774241,0.3569638,96008.0,96007.0,0.07738442]
[1746293774440,0.7177638,96008.0,96007.0,0.07738442]
[1746293779946,0.3569638,96008.0,96007.0,0.07738442]
[1746293780145,0.7177638,96008.0,96007.0,0.07738442]
[1746293781940,0.3569638,96008.0,96007.0,0.07738442]
[1746293782541,0.118,96008.0,96007.0,0.28565042]
[1746293783241,0.0520651,96010.0,96009.0,0.2603197]
[1746293783443,0.0520651,96010.0,96009.0,0.27244174]
[1746293783641,0.2603246,96010.0,96009.0,0.01212204]
[1746293784038,0.2603246,96010.0,96009.0,0.22038374]
[1746293784948,0.2603246,96010.0,96009.0,0.01212204]
[1746293785249,0.3783246,96010.0,96009.0,0.01212204]
[1746293785753,0.3783246,96010.0,96009.0,0.22038374]
[1746293798557,0.118,96010.0,96009.0,0.22038374]
[1746293799051,0.3262595,96010.0,96009.0,0.22038374]
[1746293799255,0.2082595,96010.0,96009.0,0.22038374]
[1746293805362,0.3262595,96010.0,96009.0,0.22038374]
[1746293806268,0.2082595,96010.0,96009.0,0.22038374]
[1746293808163,0.3262595,96010.0,96009.0,0.22038374]
[1746293810566,0.3574595,96010.0,96009.0,0.22038374]
[1746293810766,0.3896595,96010.0,96009.0,0.22038374]
[1746293815375,0.3896595,96010.0,96009.0,0.01212204]
[1746293815576,0.3896595,96010.0,96009.0,0.22038374]
[1746293816383,0.3896595,96010.0,96009.0,0.01212204]
[1746293819072,0.7504595,96010.0,96009.0,0.01212204]
[1746293821282,0.2082725,96004.0,96003.0,0.14461426]
[1746293821482,0.2082769,96002.0,96001.0,0.031]
[1746293821678,0.2082769,96002.0,96001.0,0.239279]
[1746293822082,0.3900769,96002.0,96001.0,0.239279]
[1746293822473,0.3890769,96002.0,96001.0,0.239279]
[1746293823178,0.3890769,96002.0,96001.0,0.241279]
[1746293824383,0.3890769,96002.0,96001.0,0.243279]
[1746293825875,0.3890769,96002.0,96001.0,0.276179]
[1746293843003,0.1512,96002.0,96001.0,0.276179]
[1746293843299,0.0307,96007.0,96006.0,0.2082682]
[1746293843501,0.238966,96007.0,96006.0,0.5690682]
[1746293844003,0.238966,96007.0,96006.0,0.6303682]
[1746293844392,0.238966,96007.0,96006.0,0.6313682]
[1746293844794,0.238966,96007.0,96006.0,0.6323682]
[1746293845101,0.356966,96007.0,96006.0,0.6323682]
[1746293846100,0.238966,96007.0,96006.0,0.6323682]
[1746293848201,0.356966,96007.0,96006.0,0.6323682]
[1746293848693,0.356966,96007.0,96006.0,0.2715682]
[1746293849099,0.1487,96007.0,96006.0,0.2715682]
[1746293849302,0.356966,96007.0,96006.0,0.2715682]
[1746293849698,0.1487,96007.0,96006.0,0.2715682]
[1746293850304,0.0307,96007.0,96006.0,0.2715682]
[1746293857113,0.0307,96007.0,96006.0,0.6323682]
[1746293858206,0.0015,96025.0,96006.0,0.52826]
[1746293858413,0.0015,96025.0,96024.0,0.2082291]
[1746293858611,0.0015,96025.0,96024.0,0.2738291]
[1746293859012,0.0015,96025.0,96024.0,0.3398291]
[1746293859212,0.1195,96025.0,96024.0,0.3398291]
[1746293860213,0.0015,96025.0,96024.0,0.3398291]
[1746293861108,0.0045,96025.0,96024.0,0.3398291]
[1746293865816,0.0045,96025.0,96024.0,0.2742291]
[1746293866017,0.0045,96025.0,96024.0,0.3398291]
[1746293867316,0.0015,96025.0,96024.0,0.3398291]
[1746293867508,0.0035,96025.0,96024.0,0.3398291]
[1746293874119,0.1215,96025.0,96024.0,0.3398291]
[1746293875223,0.0035,96025.0,96024.0,0.3398291]
[1746293876022,0.0035,96025.0,96024.0,0.2742291]
[1746293876213,0.0035,96025.0,96024.0,0.3397891]
[1746293877221,0.1215,96025.0,96024.0,0.3397891]
[1746293878419,0.0035,96025.0,96024.0,0.3397891]
[1746293878623,0.034,96025.0,96024.0,0.3397891]
[1746293879216,0.152,96025.0,96024.0,0.3397891]
[1746293879824,0.152,96025.0,96024.0,0.13156]
[1746293880626,0.152,96025.0,96024.0,0.3397891]
[1746293882727,0.152,96025.0,96024.0,0.3069891]
[1746293883124,0.360227,96025.0,96024.0,0.06556]
[1746293883428,0.360227,96025.0,96024.0,0.2737891]
[1746293885315,0.152,96025.0,96024.0,0.2737891]
[1746293885720,0.360227,96025.0,96024.0,0.2737891]
[1746293888930,0.152,96025.0,96024.0,0.2737891]
[1746293889119,0.034,96025.0,96024.0,0.6345891]
[1746293889825,0.034,96025.0,96024.0,0.6665891]
[1746293890326,0.152,96025.0,96024.0,0.6665891]
[1746293890835,0.0314,96035.0,96034.0,0.2082075]
[1746293891032,0.001,96036.0,96035.0,0.2082053]
[1746293891622,0.001,96036.0,96035.0,0.21853049]
[1746293892334,0.119,96036.0,96035.0,0.21853049]
[1746293893735,0.121,96036.0,96035.0,0.21853049]
[1746293896037,0.121,96036.0,96035.0,0.24873049]
[1746293898844,0.121,96036.0,96035.0,0.21853049]
[1746293899534,0.1824,96036.0,96035.0,0.21853049]
[1746293904943,0.1824,96036.0,96035.0,0.28401049]
[1746293905643,0.1824,96036.0,96035.0,0.31571049]
[1746293909446,0.1824,96036.0,96025.0,0.4187]
[1746293909649,0.2082248,96026.0,96025.0,0.4187]
[1746293909950,0.2082313,96023.0,96022.0,0.26523702]
[1746293910147,0.4303753,96023.0,96022.0,0.26523702]
[1746293910538,0.4303753,96023.0,96022.0,0.11553702]
[1746293910856,0.4303753,96023.0,96013.0,0.19604058]
[1746293910857,0.2082508,96014.0,96013.0,0.19604058]
[1746293911045,0.5690508,96014.0,96013.0,0.19604058]
[1746293911236,1.0412028,96014.0,96013.0,0.19604058]
[1746293911440,0.2082638,96008.0,96004.0,0.26499616]
[1746293911650,0.5690638,96008.0,96004.0,0.26499616]
[1746293911950,0.6732238,96008.0,96004.0,0.47326806]
[1746293912148,0.7912238,96008.0,96005.0,0.2082699]
[1746293912743,0.7912238,96008.0,96006.0,0.2082676]
[1746293912942,0.7912238,96008.0,96007.0,0.20982838]
[1746293913151,0.7912238,96008.0,96007.0,0.21182838]
[1746293913543,0.7912238,96008.0,96007.0,0.00356238]
[1746293914452,0.8529238,96008.0,96007.0,0.00356238]
[1746293914651,0.8529238,96008.0,96007.0,0.21182838]
[1746293917548,0.8529238,96008.0,96007.0,0.00356238]
[1746293919856,0.7487638,96008.0,96007.0,0.00356238]
[1746293920153,0.8529238,96008.0,96007.0,0.00356238]
[1746293923152,0.2082769,96003.0,96002.0,0.2082752]
[1746293923351,0.2082769,96003.0,96002.0,0.2702752]
[1746293923550,0.2406769,96003.0,96002.0,0.2702752]
[1746293924151,0.3586769,96003.0,96002.0,0.2702752]
[1746293925058,0.3586769,96003.0,96002.0,0.2732752]
[1746293925256,0.3586769,96003.0,96002.0,0.2742752]
[1746293933372,0.3586769,96003.0,96002.0,0.066]
[1746293938566,0.3262769,96003.0,96002.0,0.066]
[1746293938964,0.0520732,95995.0,95980.0,0.06544]
[1746293939267,0.260398,95983.0,95982.0,0.2083203]
[1746293940162,0.378398,95983.0,95982.0,0.2083203]
[1746293940563,0.378398,95983.0,95982.0,0.2143203]
[1746293940970,0.378398,95983.0,95982.0,0.2193203]
[1746293941658,0.378398,95983.0,95982.0,0.227046]
[1746293942567,0.378398,95983.0,95982.0,0.260246]
[1746293942870,0.378398,95983.0,95982.0,0.293246]
[1746293948271,0.3263181,95983.0,95982.0,0.293246]
[1746293951569,0.118,95983.0,95982.0,0.654046]
[1746293952265,0.5691041,95990.0,95989.0,0.2083051]
[1746293953175,0.6871041,95990.0,95989.0,0.2709051]
[1746293954174,0.6871041,95990.0,95989.0,0.2749051]
[1746293955479,0.6871041,95990.0,95989.0,0.2779051]
[1746293956270,0.7196041,95990.0,95989.0,0.2779051]
[1746293961080,0.7196041,95990.0,95989.0,0.2474051]
[1746293979592,0.7196041,95990.0,95989.0,0.0391]
[1746293980690,0.7196041,95990.0,95989.0,0.2474051]
[1746293981094,0.7196041,95990.0,95989.0,0.0391]
[1746293981392,0.7196041,95990.0,95989.0,0.2474051]
[1746293984389,0.3588041,95990.0,95989.0,0.2474051]
[1746293984697,0.7196041,95990.0,95989.0,0.2474051]
[1746293988200,0.3588041,95990.0,95989.0,0.2474051]
[1746293988403,0.7196041,95990.0,95989.0,0.2474051]
[1746293996907,0.3588041,95990.0,95989.0,0.2474051]
[1746294014310,0.84444,96013.0,95995.0,0.2082899]
[1746294014516,0.0332,95999.0,95996.0,0.0933]
[1746294015615,0.2603644,95997.0,95996.0,0.3015899]
[1746294016217,0.2603644,95997.0,95996.0,0.3035899]
[1746294016422,0.208275,96005.0,96004.0,0.2082725]
[1746294017427,0.208275,96005.0,96004.0,0.3059725]
[1746294018525,0.208275,96005.0,96004.0,0.3069725]
[1746294018714,0.208275,96005.0,96004.0,0.3079725]
[1746294019720,0.271375,96005.0,96004.0,0.3079725]
[1746294030127,0.389375,96005.0,96004.0,0.3079725]
[1746294032129,0.271375,96005.0,96004.0,0.3079725]
[1746294033935,0.238975,96005.0,96004.0,0.3079725]
[1746294038234,0.356975,96005.0,96004.0,0.3079725]
[1746294039230,0.238975,96005.0,96004.0,0.3079725]
[1746294041134,0.356975,96005.0,96004.0,0.3079725]
[1746294042231,0.238975,96005.0,96004.0,0.3079725]
[1746294052846,0.238975,96005.0,96004.0,0.52036041]
[1746294054442,0.238975,96005.0,96004.0,0.31208791]
[1746294054640,0.238975,96005.0,96004.0,0.52036041]
[1746294055750,0.238975,96005.0,96004.0,0.3079725]
[1746294078878,0.0520628,96014.0,96007.0,0.0520664]
[1746294079065,0.2082552,96012.0,96011.0,0.2082552]
[1746294079268,0.2082552,96012.0,96011.0,0.2700552]
[1746294079673,0.2082552,96012.0,96011.0,0.28046968]
[1746294080574,0.0313,96018.0,96015.0,0.0520617]
[1746294080880,0.08091876,96029.0,96024.0,0.2082291]
[1746294081071,0.0305,96027.0,96024.0,0.2082291]
[1746294081670,0.2082236,96027.0,96024.0,0.2711291]
[1746294081870,0.209727,96025.0,96024.0,0.2711291]
[1746294083583,0.212727,96025.0,96024.0,0.2711291]
[1746294084682,0.0045,96025.0,96024.0,0.2711291]
[1746294087080,0.001,96036.0,96035.0,0.2082053]
[1746294088193,0.001,96036.0,96035.0,0.3262053]
[1746294088782,0.005,96036.0,96035.0,0.3262053]
[1746294089590,0.004,96036.0,96035.0,0.3262053]
[1746294090288,0.0355,96036.0,96035.0,0.3262053]
[1746294092095,0.0355,96036.0,96035.0,0.2161351]
[1746294093387,0.0355,96036.0,96035.0,0.2810551]
[1746294094491,0.2437031,96036.0,96035.0,0.2810551]
[1746294094693,0.2437031,96036.0,96035.0,0.0728498]
[1746294094892,0.2437031,96036.0,96035.0,0.3124551]
[1746294108803,0.2437031,96036.0,96035.0,0.3437551]
[1746294115112,0.2437031,96036.0,96035.0,0.2788351]
[1746294138442,0.2437031,96036.0,96035.0,0.49118519]
[1746294142843,0.2437031,96036.0,96035.0,0.2788351]
[1746294146549,0.004,96036.0,96035.0,0.2788351]
[1746294147249,0.2408923,96041.0,96040.0,0.2081944]
[1746294147851,0.2081874,96044.0,96043.0,0.2081879]
[1746294148045,0.0305,96048.0,96047.0,0.2081793]
[1746294148246,0.2081721,96051.0,96050.0,0.2602111]
[1746294148447,0.2081721,96051.0,96050.0,0.3548111]
[1746294149952,0.208165,96054.0,96053.0,0.2081641]
[1746294150347,0.0520391,96058.0,96054.0,0.2081641]
[1746294150348,0.5689619,96055.0,96054.0,0.2081641]
[1746294150744,0.3608,96055.0,96054.0,0.2081641]
[1746294150946,0.2081253,96072.0,96054.0,0.3608]
[1746294151152,0.10549107,96075.0,96065.0,0.5689403]
[1746294151356,0.2091381,96066.0,96065.0,0.5689403]
[1746294152044,0.3271381,96066.0,96065.0,0.5994403]
[1746294152248,0.119,96066.0,96065.0,0.6321403]
[1746294153349,0.003,96066.0,96065.0,0.6321403]
[1746294153545,0.005,96066.0,96065.0,0.6321403]
[1746294162055,0.003,96066.0,96065.0,0.6321403]
[1746294162254,0.002,96066.0,96065.0,0.6321403]
[1746294166563,0.032,96068.0,96065.0,0.424]
[1746294166769,0.2601511,96078.0,96077.0,0.2081056]
[1746294167164,0.3781511,96078.0,96077.0,0.2081056]
[1746294167364,0.3781511,96078.0,96077.0,0.2383056]
[1746294167765,0.118,96078.0,96077.0,0.2383056]
[1746294167967,0.118,96078.0,96077.0,0.3031056]
[1746294168162,0.118,96078.0,96077.0,0.3352056]
[1746294168565,0.119,96078.0,96077.0,0.3352056]
[1746294169074,0.001,96078.0,96077.0,0.3352056]
[1746294169463,0.003,96078.0,96077.0,0.3352056]
[1746294173175,0.001,96078.0,96077.0,0.3352056]
[1746294173972,0.032,96079.0,96078.0,0.2081121]
[1746294174375,0.032,96079.0,96078.0,0.2698121]
[1746294175071,0.033,96079.0,96078.0,0.2698121]
[1746294178975,0.2411099,96079.0,96078.0,0.2698121]
[1746294179376,0.033,96079.0,96078.0,0.2698121]
[1746294181284,0.151,96079.0,96078.0,0.2698121]
[1746294183276,0.033,96079.0,96078.0,0.2698121]
[1746294184281,0.151,96079.0,96078.0,0.2698121]
[1746294186282,0.2081121,96078.0,96077.0,0.0648]
[1746294186477,0.2732121,96078.0,96077.0,0.2729143]
[1746294186677,0.3041121,96078.0,96077.0,0.2729143]
[1746294187085,0.4221121,96078.0,96077.0,0.2729143]
[1746294187678,0.4231121,96078.0,96077.0,0.2729143]
[1746294188183,0.4231121,96078.0,96077.0,0.2081143]
[1746294202409,0.4231121,96078.0,96077.0,0.2411143]
[1746294203499,0.3913121,96078.0,96077.0,0.2411143]
[1746294207909,0.3913121,96078.0,96076.0,0.03]
[1746294207910,0.2081143,96077.0,96076.0,0.03]
[1746294208305,0.3903143,96077.0,96076.0,0.03]
[1746294209213,0.3913143,96077.0,96076.0,0.03]
[1746294209710,0.3913143,96077.0,96076.0,0.0611]
[1746294209902,0.3913143,96077.0,96076.0,0.0621]
[1746294211012,0.3913143,96077.0,96076.0,0.2702164]
[1746294214407,0.3913143,96077.0,96076.0,0.0621]
[1746294215405,0.3913143,96077.0,96076.0,0.2702164]
[1746294233432,0.3580143,96077.0,96076.0,0.2702164]
[1746294235732,0.3580143,96077.0,96076.0,0.0621]
[1746294240239,0.3580143,96077.0,96076.0,0.2702164]
[1746294245238,0.3580143,96077.0,96076.0,0.0621]
[1746294247731,0.3580143,96077.0,96076.0,0.093]
[1746294249741,0.3580143,96077.0,96076.0,0.3011164]
[1746294251142,0.3580143,96077.0,96076.0,0.093]
[1746294252243,0.3580143,96077.0,96076.0,0.3011164]
[1746294252447,0.3580143,96077.0,96076.0,0.093]
[1746294270065,0.3580143,96077.0,96076.0,0.3011164]
[1746294278378,0.3271143,96077.0,96076.0,0.3011164]
[1746294278680,0.119,96077.0,96076.0,0.3011164]
[1746294278977,0.3271143,96077.0,96076.0,0.3011164]
[1746294279173,0.2091143,96077.0,96076.0,0.3011164]
[1746294281182,0.2091143,96077.0,96076.0,0.4191164]
[1746294282274,0.2091143,96077.0,96076.0,0.6619164]
[1746294287384,0.3271143,96077.0,96076.0,0.6619164]
[1746294293486,0.3271143,96077.0,96076.0,0.3011164]
[1746294293887,0.3271143,96077.0,96076.0,0.51324371]
[1746294297191,0.3271143,96077.0,96076.0,0.3011164]
[1746294297384,0.3202143,96077.0,96076.0,0.3011164]
[1746294300187,0.2022143,96077.0,96076.0,0.3011164]
[1746294301095,0.3202143,96077.0,96076.0,0.3011164]
[1746294307294,0.2022143,96077.0,96076.0,0.3011164]
[1746294308089,0.3202143,96077.0,96076.0,0.3011164]
[1746294315804,0.3202143,96077.0,96076.0,0.3655164]
[1746294320812,0.118,96077.0,96076.0,0.3655164]
[1746294321309,0.1507,96077.0,96076.0,0.3655164]
[1746294321498,0.3588143,96077.0,96076.0,0.3655164]
[1746294322201,0.3510143,96077.0,96076.0,0.3655164]
[1746294324508,0.1429,96077.0,96076.0,0.3655164]
[1746294326915,0.2095818,96095.0,96076.0,0.1574]
[1746294327216,0.2616015,96095.0,96094.0,0.2080775]
[1746294327407,0.2922015,96095.0,96094.0,0.2080775]
[1746294327917,0.2922015,96095.0,96094.0,0.21836808]
[1746294328317,0.4433015,96095.0,96094.0,0.21836808]
[1746294328529,0.4433015,96095.0,96094.0,0.22620954]
[1746294329120,0.4463015,96095.0,96094.0,0.22620954]
[1746294329520,0.4463015,96095.0,96094.0,0.25720954]
[1746294333730,0.4463015,96095.0,96094.0,0.28760954]
[1746294339937,0.4157015,96095.0,96094.0,0.28760954]
[1746294342337,0.1556,96095.0,96094.0,0.28760954]
[1746294342528,0.3636753,96095.0,96094.0,0.28760954]
[1746294343235,0.2456753,96095.0,96094.0,0.28760954]
[1746294345134,0.3636753,96095.0,96094.0,0.28760954]
[1746294345437,0.3937753,96095.0,96094.0,0.27731896]
[1746294347833,0.3937753,96095.0,96094.0,0.28783557]
[1746294348635,0.1225,96095.0,96094.0,0.28783557]
[1746294348841,0.1,96100.0,96095.0,0.2080753]
[1746294349334,0.1,96100.0,96095.0,0.2691753]
[1746294349823,0.0304,96099.0,96095.0,0.2691753]
[1746294350028,0.004,96096.0,96095.0,0.2691753]
[1746294351637,0.004,96096.0,96095.0,0.28463241]
[1746294352538,0.004,96096.0,96095.0,0.64543241]
[1746294357241,0.1,96100.0,96099.0,0.2080666]
[1746294357433,0.1,96100.0,96099.0,0.28780371]
[1746294357627,0.1,96100.0,96099.0,0.28782197]
[1746294358039,0.1,96100.0,96099.0,0.35312197]
[1746294358841,0.103,96100.0,96099.0,0.35312197]
[1746294359339,0.103,96100.0,96099.0,0.35317252]
[1746294365236,0.103,96100.0,96099.0,0.35320217]
[1746294365834,0.05427527,96100.0,96099.0,0.35320219]
[1746294367343,0.05127527,96100.0,96099.0,0.35320219]
[1746294367544,0.05127527,96100.0,96099.0,0.35354844]
[1746294368336,0.0325,96105.0,96099.0,0.14548184]
[1746294368533,0.10549107,96139.0,96108.0,0.0520116]
[1746294368739,0.0326,96125.0,96124.0,0.2080125]
[1746294368935,0.0326,96125.0,96124.0,0.22391434]
[1746294369242,0.3586104,96125.0,96124.0,0.22391434]
[1746294369444,0.3586104,96125.0,96124.0,0.27236679]
[1746294369637,0.35080941,96125.0,96124.0,0.27236679]
[1746294371740,0.38110941,96125.0,96124.0,0.28282393]
[1746294371936,0.38110941,96125.0,96124.0,0.27236679]
[1746294372843,0.38110941,96125.0,96124.0,0.27255037]
[1746294373453,0.38310941,96125.0,96124.0,0.27255037]
[1746294374647,0.38110941,96125.0,96124.0,0.27255037]
[1746294374848,0.38310941,96125.0,96124.0,0.27255037]
[1746294375048,0.38310941,96125.0,96124.0,0.28323342]
[1746294375848,0.37790876,96125.0,96124.0,0.28323342]
[1746294376349,0.37790876,96125.0,96124.0,0.28340004]
[1746294379744,0.37790876,96125.0,96124.0,0.28340005]
[1746294380052,0.37010778,96125.0,96124.0,0.28340005]
[1746294381956,0.37010778,96125.0,96124.0,0.28332286]
[1746294383249,0.16209738,96125.0,96124.0,0.28332286]
[1746294383555,0.37010778,96125.0,96124.0,0.28332286]
[1746294383745,0.1503,96125.0,96124.0,0.28339997]
[1746294384945,0.3583104,96125.0,96124.0,0.28339997]
[1746294386654,0.1503,96125.0,96124.0,0.28339997]
[1746294387154,0.1503,96125.0,96124.0,0.267148]
[1746294387452,0.1503,96125.0,96124.0,0.28339991]
[1746294388755,0.3583104,96125.0,96124.0,0.28339991]
[1746294390053,0.3505097,96125.0,96124.0,0.28339991]
[1746294390746,0.3505097,96125.0,96124.0,0.28264795]
[1746294391761,0.3505097,96125.0,96124.0,0.267148]
[1746294393354,0.3505097,96125.0,96124.0,0.297448]
[1746294396361,0.3505097,96125.0,96124.0,0.28199555]
[1746294399455,0.3505097,96125.0,96124.0,0.07398305]
[1746294399663,0.3505097,96125.0,96124.0,0.28199555]
[1746294407466,0.3202097,96125.0,96124.0,0.28199555]
[1746294407666,0.1121993,96125.0,96124.0,0.28199555]
[1746294408277,0.002,96125.0,96124.0,0.28199555]
[1746294408864,0.20320792,96126.0,96125.0,0.2080104]
[1746294409273,0.20320792,96126.0,96125.0,0.3020104]
[1746294409966,0.20520792,96126.0,96125.0,0.3020104]
[1746294410462,0.002,96126.0,96125.0,0.3020104]
[1746294411075,0.12,96126.0,96125.0,0.3020104]
[1746294411276,0.3280082,96126.0,96125.0,0.3020104]
[1746294413976,0.118,96126.0,96125.0,0.3020104]
[1746294415184,0.118,96126.0,96125.0,0.6628104]
[1746294416883,0.3260082,96126.0,96125.0,0.6628104]
[1746294420687,0.118,96126.0,96125.0,0.6628104]
[1746294420882,0.3260082,96126.0,96125.0,0.6628104]
[1746294421591,0.118,96126.0,96125.0,0.6628104]
[1746294423888,0.3260082,96126.0,96125.0,0.6628104]
[1746294426693,0.118,96126.0,96125.0,0.6628104]
[1746294427994,0.3260082,96126.0,96125.0,0.6628104]
[1746294429495,0.118,96126.0,96125.0,0.6628104]
[1746294431798,0.118,96126.0,96125.0,0.7270504]
[1746294433898,0.118,96126.0,96125.0,0.51904]
[1746294434503,0.118,96126.0,96125.0,0.7270504]
[1746294450415,0.118,96126.0,96125.0,0.3662504]
[1746294450608,0.118,96126.0,96125.0,0.7270504]
[1746294452804,0.5687699,96144.0,96143.0,0.2079714]
[1746294453004,0.001,96156.0,96150.0,0.2079563]
[1746294453217,0.28730995,96151.0,96150.0,0.2079563]
[1746294454107,0.40530995,96151.0,96150.0,0.2387563]
[1746294454421,0.19735585,96151.0,96150.0,0.24898758]
[1746294454614,0.40530995,96151.0,96150.0,0.24898758]
[1746294454814,0.43810995,96151.0,96150.0,0.24898758]
[1746294457623,0.43826536,96151.0,96150.0,0.24898758]
[1746294458827,0.35890951,96151.0,96150.0,0.24898758]
[1746294459321,0.35890951,96151.0,96150.0,0.27998758]
[1746294459527,0.35890951,96151.0,96150.0,0.64078758]
[1746294466929,0.35890951,96151.0,96150.0,0.65637859]
[1746294467129,0.35111059,96151.0,96150.0,0.65637859]
[1746294471946,0.35111059,96151.0,96150.0,0.6564776]
[1746294472448,0.35111059,96151.0,96150.0,0.67183787]
[1746294473250,0.35111059,96151.0,96150.0,0.6564776]
[1746294473754,0.31831059,96151.0,96150.0,0.6564776]
[1746294474238,0.31311133,96151.0,96150.0,0.67207432]
[1746294475243,0.31311133,96151.0,96150.0,0.73627432]
[1746294477352,0.30531253,96151.0,96150.0,0.73620293]
[1746294478252,0.30531253,96151.0,96150.0,0.7206776]
[1746294480453,0.30531253,96151.0,96150.0,0.3598776]
[1746294480751,0.30531253,96151.0,96150.0,0.51872199]
[1746294480952,0.30531253,96151.0,96150.0,0.50303197]
[1746294481151,0.33681253,96151.0,96150.0,0.50303197]
[1746294483053,0.09735843,96151.0,96150.0,0.50303197]
[1746294484855,0.09735843,96151.0,96150.0,0.34418758]
[1746294486154,0.09735843,96151.0,96150.0,0.35967295]
[1746294487957,0.08955971,96151.0,96150.0,0.35967295]
[1746294489058,0.08955971,96151.0,96150.0,0.34418758]
[1746294490259,0.08955971,96151.0,96150.0,0.70498758]
[1746294491247,0.3608,96187.0,96164.0,0.207926]
[1746294491448,0.0327,96171.0,96164.0,0.632926]
[1746294491642,0.2079181,96168.0,96164.0,0.632926]
[1746294492359,0.1195,96165.0,96164.0,0.696226]
[1746294500964,0.0824701,96185.0,96184.0,0.2078828]
[1746294501163,0.2317701,96185.0,96184.0,0.2078828]
[1746294501365,0.439655,96185.0,96184.0,0.2078828]
[1746294501964,0.43185798,96185.0,96184.0,0.22338231]
[1746294502465,0.46185798,96185.0,96184.0,0.22338231]
[1746294504058,0.46185798,96185.0,96184.0,0.2078828]
[1746294507469,0.46185798,96185.0,96184.0,0.20996214]
[1746294508767,0.46185798,96185.0,96184.0,0.00207934]
[1746294508968,0.81582598,96185.0,96184.0,1e-08]
[1746294511361,0.56582598,96185.0,96184.0,1e-08]
[1746294518879,0.98422598,96185.0,96184.0,1e-08]
[1746294521073,1.70582598,96185.0,96184.0,1e-08]
[1746294525578,1.78582598,96185.0,96184.0,1e-08]
[1746294528989,1.763123,96185.0,96184.0,1e-08]
[1746294531381,1.763123,96185.0,96184.0,0.01549243]
[1746294532983,1.763123,96185.0,96184.0,0.04719243]
[1746294533788,1.731823,96185.0,96184.0,0.04719243]
[1746294534790,1.010223,96185.0,96184.0,0.04719243]
[1746294534998,1.731823,96185.0,96184.0,0.04719243]
[1746294535995,1.701823,96185.0,96184.0,0.04719243]
[1746294538396,1.701823,96185.0,96184.0,0.03170001]
[1746294538599,1.732823,96185.0,96184.0,0.03170001]
[1746294538800,1.732823,96185.0,96162.0,0.15855023]
[1746294538801,0.2079282,96164.0,96163.0,0.051982]
[1746294539193,0.3259282,96164.0,96163.0,0.5099041]
[1746294539495,0.3259282,96164.0,96163.0,0.52012538]
[1746294539803,0.3259282,96164.0,96163.0,0.27012538]